bitfinex/quotes_SOLUSD_20250531
["timestamp","ask_amount","ask_price","bid_price","bid_amount"]
[1748674241972,167.81055344,155.36,155.32,21.91055344]
[1748674242665,167.81055344,155.36,155.31,40.5602023]
[1748674243176,174.24723903,155.36,155.31,40.5602023]
[1748674243373,174.24723903,155.36,155.31,46.99887193]
[1748674245367,174.24723903,155.36,155.31,40.5602023]
[1748674245775,174.24723903,155.36,155.32,21.91055344]
[1748674247574,174.24723903,155.36,155.31,40.5602023]
[1748674249175,21.91055344,155.35,155.31,18.64964886]
[1748674249479,21.91055344,155.35,155.28,26.0]
[1748674249648,152.33668559,155.36,155.29,18.64964886]
[1748674249649,21.91055344,155.34,155.29,18.64964886]
[1748674249853,21.91055344,155.34,155.29,40.5602023]
[1748674250056,14.00581208,155.34,155.29,32.65546094]
[1748674251261,20.44371847,155.33,155.29,18.64964886]
[1748674251982,28.32406592,155.33,155.29,18.64964886]
[1748674252280,6.43790639,155.33,155.29,40.53580839]
[1748674253166,28.32406592,155.33,155.29,18.64964886]
[1748674254055,28.32406592,155.33,155.29,40.53580839]
[1748674254261,6.43790639,155.33,155.29,40.53580839]
[1748674260766,28.32365148,155.34,155.29,40.53580839]
[1748674261169,21.88615953,155.33,155.29,40.53580839]
[1748674261875,6.43749195,155.34,155.27,6.7245698]
[1748674261876,21.88615953,155.32,155.27,22.17048267]
[1748674262100,21.88615953,155.31,155.27,18.64964886]
[1748674262462,21.88615953,155.32,155.27,40.53580839]
[1748674262959,28.32489496,155.31,155.26,31.88615953]
[1748674263159,21.88615953,155.29,155.24,40.53580839]
[1748674263374,21.88615953,155.3,155.25,21.88615953]
[1748674263565,6.43845704,155.32,155.28,21.88615953]
[1748674263772,174.22423477,155.33,155.28,21.88615953]
[1748674264172,21.88615953,155.32,155.28,18.64964886]
[1748674265372,28.32473471,155.32,155.28,18.64964886]
[1748674265695,21.88615953,155.3,155.27,18.64964886]
[1748674265911,21.88615953,155.29,155.25,50.53580839]
[1748674266191,21.88615953,155.29,155.25,28.64964886]
[1748674267475,28.32587749,155.29,155.25,28.64964886]
[1748674268874,28.32587749,155.29,155.25,50.53580839]
[1748674271366,28.32587749,155.29,155.25,18.64964886]
[1748674271586,28.32587749,155.29,155.24,21.88615953]
[1748674271995,20.45488608,155.29,155.25,14.01516812]
[1748674272976,20.45488608,155.29,155.24,32.66481698]
[1748674276075,145.9,155.31,155.28,32.66481698]
[1748674277304,145.9,155.31,155.29,14.01516812]
[1748674277602,145.9,155.31,155.28,14.01516812]
[1748674277899,145.9,155.31,155.29,18.64964886]
[1748674279907,28.32398775,155.33,155.29,18.64964886]
[1748674285203,21.88593352,155.33,155.29,18.64964886]
[1748674285698,21.88593352,155.34,155.29,21.88593352]
[1748674286282,21.88593352,155.35,155.31,40.53558238]
[1748674286988,21.88593352,155.35,155.31,18.64964886]
[1748674287604,28.32339403,155.35,155.31,18.64964886]
[1748674287807,6.43746051,155.35,155.31,40.53558238]
[1748674288106,174.22271125,155.36,155.31,40.53558238]
[1748674292409,152.33677773,155.36,155.31,40.53558238]
[1748674292592,174.22271125,155.36,155.31,40.53558238]
[1748674293189,174.22271125,155.36,155.32,21.88593352]
[1748674293495,152.33677773,155.36,155.32,21.88593352]
[1748674295111,45.48571501,155.38,155.34,21.88593352]
[1748674295614,51.92183374,155.38,155.34,21.88593352]
[1748674295988,51.92183374,155.38,155.33,21.88593352]
[1748674297902,44.03435217,155.38,155.33,13.99845195]
[1748674303298,43.53435217,155.38,155.33,13.99845195]
[1748674303826,43.03435217,155.38,155.33,13.99845195]
[1748674304400,29.03590022,155.38,155.35,13.99845195]
[1748674304612,18.23135834,155.38,155.34,13.99845195]
[1748674304916,11.79523961,155.38,155.35,13.99845195]
[1748674305109,9.29523961,155.38,155.35,13.99845195]
[1748674309427,15.73111819,155.38,155.35,13.99845195]
[1748674310915,9.29523961,155.38,155.35,13.99845195]
[1748674312027,15.73108611,155.38,155.34,0.28432314]
[1748674312199,15.73108611,155.38,155.34,13.99845195]
[1748674312614,29.72953806,155.38,155.33,32.64810081]
[1748674312820,13.99845195,155.37,155.33,32.64810081]
[1748674313432,29.72953806,155.38,155.33,32.64810081]
[1748674313719,29.72953806,155.38,155.34,13.99845195]
[1748674317015,15.73108611,155.38,155.34,13.99845195]
[1748674317826,29.72953806,155.38,155.33,18.64964886]
[1748674318018,29.72953806,155.38,155.34,13.99845195]
[1748674319942,29.72953806,155.38,155.33,32.64810081]
[1748674321125,13.99845195,155.37,155.32,39.99845195]
[1748674321319,6.43707756,155.35,155.32,39.99845195]
[1748674323523,20.43511518,155.36,155.32,13.99845195]
[1748674324327,20.43511518,155.36,155.31,18.64964886]
[1748674324539,13.99845195,155.35,155.31,18.64964886]
[1748674324842,6.43666323,155.36,155.32,13.99845195]
[1748674324843,20.43511518,155.36,155.32,13.99845195]
[1748674326556,6.43666323,155.36,155.32,13.99845195]
[1748674326847,152.3363682,155.37,155.33,13.99845195]
[1748674327017,9.29523961,155.38,155.35,13.99845195]
[1748674328234,15.73112664,155.38,155.34,32.93242395]
[1748674328924,13.99845195,155.37,155.32,13.99845195]
[1748674329121,13.99845195,155.36,155.31,13.99845195]
[1748674329645,13.99845195,155.36,155.32,13.99845195]
[1748674330448,145.9,155.41,155.35,13.99845195]
[1748674330449,161.98696742,155.41,155.35,13.99845195]
[1748674330638,159.89845195,155.4,155.35,13.99845195]
[1748674330832,13.99845195,155.39,155.35,13.99845195]
[1748674331648,20.43419956,155.39,155.35,13.99845195]
[1748674332231,20.43419956,155.39,155.34,13.99845195]
[1748674332956,13.99845195,155.38,155.34,13.99845195]
[1748674333662,20.43419956,155.39,155.34,13.99845195]
[1748674334841,20.43419956,155.39,155.35,13.99845195]
[1748674337451,20.43419956,155.39,155.34,13.99845195]
[1748674337863,20.43445841,155.38,155.34,13.99845195]
[1748674338750,6.43600646,155.38,155.34,13.99845195]
[1748674338955,20.43402414,155.39,155.34,13.99845195]
[1748674339263,20.43402414,155.39,155.35,13.99845195]
[1748674345044,6.43557219,155.39,155.35,13.99845195]
[1748674345247,20.43402414,155.39,155.35,13.99845195]
[1748674346057,20.43402414,155.39,155.34,32.64810081]
[1748674347149,20.43402414,155.39,155.34,39.08551208]
[1748674351768,20.43402414,155.39,155.34,32.64810081]
[1748674352551,20.43402414,155.39,155.34,39.08549]
[1748674353552,20.43402414,155.39,155.34,32.64810081]
[1748674355365,20.43402414,155.39,155.34,39.08553111]
[1748674357658,20.43402414,155.39,155.34,32.64810081]
[1748674359574,6.43557219,155.39,155.34,32.64810081]
[1748674359777,20.43402414,155.39,155.34,32.64810081]
[1748674368785,13.99845195,155.36,155.32,18.64964886]
[1748674368961,13.99845195,155.35,155.32,18.64964886]
[1748674369167,13.99845195,155.35,155.31,49.97845195]
[1748674369168,13.99845195,155.35,155.31,9.98]
[1748674369370,13.99845195,155.35,155.31,18.64964886]
[1748674370865,20.4359439,155.34,155.3,18.64964886]
[1748674371088,20.4359439,155.34,155.3,32.64810081]
[1748674371286,6.43749195,155.34,155.3,32.64810081]
[1748674372106,13.99845195,155.32,155.27,16.5474]
[1748674372391,13.99845195,155.3,155.25,32.64810081]
[1748674372572,13.99845195,155.29,155.25,32.64810081]
[1748674372779,20.43801088,155.3,155.25,32.64810081]
[1748674374679,13.99845195,155.29,155.25,32.64810081]
[1748674374875,13.99845195,155.29,155.25,18.64964886]
[1748674376211,20.43826392,155.29,155.25,18.64964886]
[1748674378283,20.43826392,155.29,155.25,32.64810081]
[1748674380371,20.43826392,155.29,155.25,18.64964886]
[1748674380571,13.99845195,155.28,155.24,39.99845195]
[1748674381597,20.43859987,155.28,155.24,39.99845195]
[1748674382505,13.99845195,155.27,155.23,32.64810081]
[1748674383318,13.99845195,155.27,155.23,18.64964886]
[1748674384915,20.43859987,155.28,155.23,32.64810081]
[1748674385115,20.43859987,155.28,155.24,13.99845195]
[1748674393783,13.99845195,155.28,155.24,13.99845195]
[1748674394596,159.89845195,155.29,155.25,20.43967578]
[1748674395607,166.33805953,155.29,155.24,18.64964886]
[1748674395907,13.99845195,155.28,155.24,32.64810081]
[1748674396107,20.43846073,155.28,155.24,13.99845195]
[1748674400433,20.43846073,155.28,155.23,32.64810081]
[1748674400733,13.99845195,155.27,155.23,32.64810081]
[1748674401601,20.43895638,155.27,155.23,32.64810081]
[1748674402906,13.99845195,155.27,155.23,39.09011372]
[1748674403107,20.43852636,155.28,155.23,32.64810081]
[1748674404224,20.43908259,155.27,155.23,18.64964886]
[1748674404900,13.99845195,155.26,155.22,26.0]
[1748674405909,20.43934788,155.26,155.22,26.0]
[1748674406620,20.43934788,155.26,155.22,39.99845195]
[1748674407806,20.43934788,155.26,155.22,18.64964886]
[1748674410906,13.99845195,155.25,155.21,13.99845195]
[1748674411106,13.99845195,155.25,155.21,18.64964886]
[1748674411307,13.99845195,155.25,155.21,32.64810081]
[1748674411529,13.99845195,155.25,155.21,32.24810081]
[1748674411903,20.43982609,155.25,155.21,32.24810081]
[1748674412109,13.99845195,155.24,155.2,16.55310065]
[1748674413730,20.44010111,155.24,155.2,16.55310065]
[1748674415634,20.44010111,155.24,155.2,2.5546487]
[1748674415635,13.99845195,155.23,155.2,2.5546487]
[1748674416310,20.43983345,155.25,155.21,13.99845195]
[1748674417607,145.9,155.26,155.21,39.09089094]
[1748674417813,166.33945462,155.26,155.22,13.99845195]
[1748674418335,159.89845195,155.26,155.22,13.99845195]
[1748674419627,166.33941139,155.26,155.21,39.09089094]
[1748674421437,166.33941139,155.26,155.21,32.64810081]
[1748674421633,13.99845195,155.25,155.21,32.64810081]
[1748674422836,13.99845195,155.25,155.21,39.0909543]
[1748674425524,166.33941139,155.26,155.21,39.0909543]
[1748674425742,166.33941139,155.26,155.22,13.99845195]
[1748674426321,166.33941139,155.26,155.21,39.0909543]
[1748674430442,166.33941139,155.26,155.21,32.64810081]
[1748674434651,145.9,155.26,155.21,39.09082061]
[1748674434852,159.89845195,155.26,155.22,13.99845195]
[1748674435154,166.33926249,155.26,155.22,13.99845195]
[1748674437458,152.34081054,155.26,155.22,13.99845195]
[1748674437658,166.33926249,155.26,155.22,13.99845195]
[1748674440461,152.34081054,155.26,155.22,13.99845195]
[1748674440666,166.33926249,155.26,155.22,13.99845195]
[1748674441466,166.33926249,155.26,155.21,39.09082061]
[1748674442475,152.34081054,155.26,155.21,39.09082061]
[1748674442765,166.33926249,155.26,155.21,39.09082061]
[1748674445462,166.33926249,155.26,155.21,32.64810081]
[1748674447079,166.33926249,155.26,155.21,39.09085236]
[1748674449275,152.34081054,155.26,155.21,39.09085236]
[1748674452378,152.34081054,155.26,155.21,18.64964886]
[1748674452553,152.34081054,155.26,155.21,32.64810081]
[1748674453253,152.34081054,155.26,155.21,18.64964886]
[1748674453669,166.33926249,155.26,155.21,18.64964886]
[1748674455459,166.33926249,155.26,155.21,32.64810081]
[1748674463889,166.33926249,155.26,155.21,39.09093532]
[1748674472692,166.33926249,155.26,155.21,32.64810081]
[1748674476775,13.99845195,155.24,155.18,13.99845195]
[1748674476897,13.99845195,155.22,155.18,18.64964886]
[1748674477092,13.99845195,155.22,155.18,13.99845195]
[1748674477424,13.99845195,155.22,155.17,28.62964886]
[1748674477628,39.02,155.25,155.17,42.62810081]
[1748674477629,13.99845195,155.21,155.17,42.62810081]
[1748674478007,13.99845195,155.2,155.15,6.58751676]
[1748674478208,13.99845195,155.2,155.16,32.64810081]
[1748674478615,13.99845195,155.2,155.15,32.64810081]
[1748674478616,6.44371415,155.19,155.15,32.64810081]
[1748674483921,20.44191273,155.2,155.15,32.64810081]
[1748674486224,20.44191273,155.2,155.15,18.64964886]
[1748674486421,13.99845195,155.19,155.14,32.64810081]
[1748674488246,20.44249004,155.19,155.14,32.64810081]
[1748674492538,13.99845195,155.18,155.14,32.64810081]
[1748674492725,13.99845195,155.18,155.14,13.99845195]
[1748674492931,13.99845195,155.17,155.13,49.97845195]
[1748674493923,20.44311704,155.17,155.13,49.97845195]
[1748674495457,13.99845195,155.18,155.13,49.97845195]
[1748674495755,13.99845195,155.18,155.13,39.99845195]
[1748674496329,6.44454469,155.17,155.13,39.99845195]
[1748674498144,20.44299664,155.17,155.13,39.99845195]
[1748674498741,13.99845195,155.17,155.13,39.99845195]
[1748674499451,13.99845195,155.16,155.11,16.54140993]
[1748674499654,13.99845195,155.15,155.11,16.54140993]
[1748674500357,166.34315651,155.17,155.12,13.99845195]
[1748674501658,20.44365139,155.16,155.12,13.99845195]
[1748674503856,6.44519944,155.16,155.12,13.99845195]
[1748674504063,20.44365139,155.16,155.12,13.99845195]
[1748674504950,145.9,155.17,155.13,32.64810081]
[1748674505133,145.9,155.17,155.15,13.99845195]
[1748674505534,145.9,155.17,155.13,18.64964886]
[1748674505535,145.9,155.17,155.16,13.99845195]
[1748674507361,145.9,155.17,155.16,39.09306085]
[1748674510359,145.9,155.17,155.16,39.37738399]
[1748674510665,192.87671032,155.23,155.17,18.64964886]
[1748674510842,192.87671032,155.23,155.18,13.99845195]
[1748674511042,13.99845195,155.22,155.18,13.99845195]
[1748674511738,20.4411042,155.22,155.18,13.99845195]
[1748674512267,159.89845195,155.21,155.16,39.99845195]
[1748674512966,159.89845195,155.21,155.17,13.99845195]
[1748674513763,145.9,155.21,155.18,13.99845195]
[1748674514070,145.9,155.21,155.17,39.0926011]
[1748674514775,145.9,155.21,155.17,32.64810081]
[1748674515442,145.9,155.21,155.17,39.09254672]
[1748674517267,159.89845195,155.21,155.17,39.09254672]
[1748674517952,145.9,155.21,155.17,39.09254672]
[1748674519666,145.9,155.25,155.21,18.64964886]
[1748674519868,145.9,155.25,155.23,13.99845195]
[1748674520645,145.9,155.25,155.22,13.99845195]
[1748674521260,145.9,155.25,155.23,13.99845195]
[1748674522043,145.9,155.25,155.23,21.90287711]
[1748674528472,145.9,155.25,155.23,28.34492923]
[1748674528661,145.9,155.25,155.23,21.90287711]
[1748674531188,152.34126774,155.25,155.21,40.55252597]
[1748674531690,174.24414485,155.25,155.21,21.90287711]
[1748674532057,21.90287711,155.24,155.19,21.90287711]
[1748674532785,21.90287711,155.23,155.18,40.55252597]
[1748674533364,28.34533146,155.23,155.18,40.55252597]
[1748674535186,28.34533146,155.23,155.19,21.90287711]
[1748674535187,6.44245435,155.23,155.19,21.90287711]
[1748674535603,6.44245435,155.23,155.18,25.09377422]
[1748674535766,6.44245435,155.23,155.19,21.90287711]
[1748674536472,45.44172742,155.24,155.2,21.90287711]
[1748674536781,60.90287711,155.24,155.2,21.90287711]
[1748674536966,21.90287711,155.24,155.2,21.90287711]
[1748674537171,28.34466381,155.24,155.2,21.90287711]
[1748674540179,6.4417867,155.24,155.2,21.90287711]
[1748674540383,28.34466381,155.24,155.2,21.90287711]
[1748674543578,28.34466381,155.24,155.19,40.55252597]
[1748674543970,20.46591677,155.24,155.19,32.67377893]
[1748674549502,20.46591677,155.24,155.19,39.1174731]
[1748674549874,20.46591677,155.24,155.19,32.67377893]
[1748674551171,20.46591677,155.24,155.19,18.64964886]
[1748674551381,20.46591677,155.24,155.19,32.67377893]
[1748674553375,20.46591677,155.24,155.19,39.11738901]
[1748674557574,14.02413007,155.23,155.19,39.11738901]
[1748674558310,14.02413007,155.23,155.19,25.09325894]
[1748674560814,14.02413007,155.22,155.18,18.64964886]
[1748674561895,20.46674842,155.22,155.17,40.02413007]
[1748674562183,14.02413007,155.21,155.17,26.0]
[1748674562725,14.02413007,155.18,155.15,9.98]
[1748674563012,14.02413007,155.18,155.14,44.64964886]
[1748674564082,14.02413007,155.17,155.14,18.64964886]
[1748674564983,20.4684857,155.18,155.14,18.64964886]
[1748674565293,20.46800522,155.19,155.14,39.11941375]
[1748674565886,159.92413007,155.21,155.16,14.02413007]
[1748674566088,166.36713532,155.21,155.17,14.02413007]
[1748674566291,145.9,155.21,155.18,14.02413007]
[1748674566506,145.9,155.21,155.2,14.02413007]
[1748674566712,11.5726,155.26,155.2,14.02413007]
[1748674566713,159.92413007,155.25,155.2,14.02413007]
[1748674566879,166.36552211,155.25,155.2,14.02413007]
[1748674567081,166.36552211,155.25,155.18,44.933972]
[1748674567313,14.02413007,155.24,155.2,14.02413007]
[1748674567908,174.2508339,155.25,155.2,40.55909072]
[1748674573910,174.2508339,155.25,155.2,47.00232914]
[1748674574320,152.34139204,155.25,155.21,21.90944186]
[1748674576313,145.9,155.25,155.22,21.90944186]
[1748674576705,145.9,155.25,155.23,21.90944186]
[1748674577796,11.77761766,155.27,155.24,21.90944186]
[1748674578004,11.77761766,155.27,155.23,18.64964886]
[1748674578218,11.77761766,155.27,155.24,21.90944186]
[1748674578392,28.34947332,155.28,155.24,21.90944186]
[1748674579490,21.90944186,155.28,155.24,21.90944186]
[1748674580097,184.20916641,155.29,155.24,21.90944186]
[1748674581222,21.90944186,155.28,155.23,40.55909072]
[1748674583027,28.34964002,155.28,155.23,40.55909072]
[1748674584804,28.34964002,155.28,155.23,18.64964886]
[1748674584805,21.90944186,155.27,155.23,18.64964886]
[1748674585124,6.44065701,155.27,155.23,40.55909072]
[1748674586521,6.4401213,155.28,155.21,26.0]
[1748674586834,28.34956316,155.28,155.23,21.90944186]
[1748674588207,6.4401213,155.28,155.24,21.90944186]
[1748674589237,28.34956316,155.28,155.23,21.90944186]
[1748674590331,21.90944186,155.27,155.23,18.64964886]
[1748674590829,28.34956316,155.28,155.23,21.90944186]
[1748674591624,6.4401213,155.28,155.24,21.90944186]
[1748674592011,28.34956316,155.28,155.24,21.90944186]
[1748674592943,28.34956316,155.28,155.23,21.90944186]
[1748674594032,20.45639342,155.28,155.23,32.66592098]
[1748674594535,20.45639342,155.28,155.24,14.01627212]
[1748674594536,6.4401213,155.28,155.24,14.01627212]
[1748674596936,6.4401213,155.28,155.23,18.64964886]
[1748674596937,20.45639342,155.28,155.23,32.66592098]
[1748674597518,14.01627212,155.25,155.2,9.96]
[1748674597823,14.01627212,155.24,155.19,14.01627212]
[1748674598220,6.44205372,155.23,155.19,14.01627212]
[1748674598419,20.45832584,155.23,155.18,32.66592098]
[1748674598637,14.01627212,155.2,155.15,30.42159213]
[1748674598829,14.01627212,155.19,155.15,23.97627212]
[1748674599929,28.36884768,155.19,155.15,31.88511816]
[1748674601361,28.36884768,155.19,155.15,9.96]
[1748674601559,28.36884768,155.19,155.15,31.88511816]
[1748674602426,28.36884768,155.19,155.15,9.96]
[1748674602739,28.36884768,155.19,155.15,18.64964886]
[1748674603117,21.92511816,155.18,155.15,18.64964886]
[1748674603642,6.44372952,155.19,155.15,18.64964886]
[1748674603942,28.36858035,155.2,155.15,40.57476702]
[1748674605324,21.92511816,155.19,155.15,40.57476702]
[1748674605729,21.92511816,155.19,155.15,18.64964886]
[1748674607244,21.92511816,155.19,155.15,40.57476702]
[1748674607435,21.92511816,155.19,155.15,47.0201421]
[1748674608738,21.92511816,155.19,155.15,25.09502394]
[1748674609856,28.36897065,155.19,155.15,18.64964886]
[1748674611221,21.92511816,155.19,155.15,18.64964886]
[1748674613052,21.92511816,155.19,155.15,47.0200946]
[1748674614229,21.92511816,155.19,155.15,25.09497644]
[1748674614739,21.92511816,155.19,155.15,18.64964886]
[1748674615728,21.92511816,155.19,155.15,25.09490274]
[1748674616736,21.92511816,155.19,155.15,47.0200209]
[1748674616957,6.44288383,155.21,155.15,47.0200209]
[1748674617162,167.82511816,155.22,155.17,21.92511816]
[1748674619734,167.82511816,155.22,155.17,28.36948972]
[1748674620142,152.34251188,155.22,155.17,28.36948972]
[1748674620326,174.26763004,155.22,155.17,28.36948972]
[1748674622031,167.82511816,155.22,155.18,47.01886231]
[1748674623754,174.26765632,155.22,155.18,18.64964886]
[1748674628164,166.36973998,155.22,155.18,18.64964886]
[1748674628460,159.92720182,155.22,155.18,18.64964886]
[1748674628769,159.92720182,155.22,155.18,39.1208223]
[1748674629061,145.9,155.22,155.18,39.1208223]
[1748674629567,145.9,155.22,155.21,32.67685068]
[1748674629762,29.69464566,155.26,155.21,32.67685068]
[1748674629964,37.5743566,155.26,155.21,40.55656162]
[1748674630449,21.90691276,155.25,155.21,18.64964886]
[1748674630637,21.90691276,155.24,155.2,26.0]
[1748674632358,28.34857471,155.24,155.2,26.0]
[1748674637253,28.34857471,155.24,155.2,47.90691276]
[1748674639360,28.3482455,155.25,155.2,54.35016308]
[1748674640366,15.667521,155.26,155.21,21.90691276]
[1748674640682,37.57443376,155.26,155.21,21.90691276]
[1748674641253,37.57443376,155.26,155.22,21.90691276]
[1748674643274,15.667521,155.26,155.21,25.09250304]
[1748674643577,9.22661439,155.26,155.23,21.90691276]
[1748674644568,9.22661439,155.26,155.24,21.90691276]
[1748674644754,9.22661439,155.26,155.21,79.55656162]
[1748674644755,31.13352715,155.26,155.21,79.55656162]
[1748674644955,31.13352715,155.26,155.21,40.55656162]
[1748674645450,37.5743388,155.26,155.21,40.55656162]
[1748674645652,15.66742604,155.26,155.22,21.90691276]
[1748674646174,9.22661439,155.26,155.23,40.55656162]
[1748674646379,152.340277,155.28,155.23,40.55656162]
[1748674646576,21.90691276,155.27,155.23,18.64964886]
[1748674647572,28.34753496,155.27,155.23,18.64964886]
[1748674648676,21.90691276,155.24,155.2,26.0]
[1748674651080,28.34877735,155.24,155.2,26.0]
[1748674651576,28.34877735,155.24,155.17,21.90691276]
[1748674651577,21.90691276,155.22,155.17,21.90691276]
[1748674651772,21.90691276,155.21,155.17,18.64964886]
[1748674652870,21.90691276,155.21,155.17,40.55656162]
[1748674653285,28.34992797,155.21,155.17,40.55656162]
[1748674654082,6.44205372,155.23,155.18,21.90691276]
[1748674654258,21.90691276,155.22,155.18,21.90691276]
[1748674654466,21.90691276,155.22,155.17,40.55656162]
[1748674655172,21.90691276,155.21,155.17,40.55656162]
[1748674657062,21.90691276,155.21,155.17,18.64964886]
[1748674657263,28.34989551,155.21,155.17,18.64964886]
[1748674657988,6.44298275,155.21,155.17,18.64964886]
[1748674658283,28.34989551,155.21,155.17,18.64964886]
[1748674661268,21.90691276,155.21,155.17,40.55656162]
[1748674661967,14.02792793,155.21,155.17,32.67757679]
[1748674662168,6.44256937,155.22,155.17,32.67757679]
[1748674662383,145.9,155.24,155.19,32.67757679]
[1748674662688,159.92792793,155.24,155.2,14.02792793]
[1748674662890,159.92792793,155.24,155.21,18.64964886]
[1748674662891,145.9,155.24,155.21,18.64964886]
[1748674663194,145.9,155.24,155.21,32.67757679]
[1748674663870,145.9,155.24,155.21,18.64964886]
[1748674664079,145.9,155.24,155.22,32.67757679]
[1748674665972,145.9,155.24,155.22,21.90457661]
[1748674667298,145.9,155.24,155.22,18.64964886]
[1748674667714,6.44087642,155.26,155.22,18.64964886]
[1748674667993,28.34545303,155.26,155.22,18.64964886]
[1748674668592,6.44039415,155.27,155.22,18.64964886]
[1748674668799,28.34497076,155.27,155.22,40.55422547]
[1748674668969,28.34497076,155.27,155.22,46.99658954]
[1748674671384,28.34497076,155.27,155.22,40.55422547]
[1748674671589,21.90457661,155.26,155.22,40.55422547]
[1748674671876,21.90457661,155.25,155.22,18.64964886]
[1748674673997,21.90457661,155.26,155.22,18.64964886]
[1748674675082,21.90457661,155.25,155.22,18.64964886]
[1748674675690,21.90457661,155.24,155.2,21.90457661]
[1748674675898,21.90457661,155.24,155.2,18.933972]
[1748674676797,21.90457661,155.24,155.2,25.37720916]
[1748674677700,28.34622161,155.24,155.2,18.933972]
[1748674679417,21.90457661,155.24,155.2,18.933972]
[1748674680208,28.34596515,155.25,155.2,47.28177718]
[1748674681308,21.90457661,155.27,155.23,21.90457661]
[1748674681685,147.4047,155.28,155.23,21.90457661]
[1748674681883,21.90457661,155.27,155.23,21.90457661]
[1748674682485,21.90457661,155.27,155.23,18.64964886]
[1748674682689,28.34510595,155.27,155.23,18.64964886]
[1748674682903,21.90457661,155.26,155.23,18.64964886]
[1748674683903,6.44052934,155.27,155.23,18.64964886]
[1748674683904,28.34510595,155.27,155.23,18.64964886]
[1748674688110,21.90457661,155.26,155.23,18.64964886]
[1748674688407,21.90457661,155.26,155.22,21.90457661]
[1748674688706,21.90457661,155.24,155.2,18.64964886]
[1748674690015,20.46591947,155.24,155.2,18.64964886]
[1748674690513,14.02391861,155.22,155.19,9.96]
[1748674692115,28.35907294,155.22,155.19,9.96]
[1748674692587,21.91629383,155.23,155.2,18.64964886]
[1748674692785,28.35827372,155.24,155.2,40.56594269]
[1748674696725,28.35827372,155.24,155.2,18.64964886]
[1748674698809,28.35827372,155.24,155.2,40.56594269]
[1748674699110,21.91629383,155.24,155.2,40.56594269]
[1748674699531,28.3580495,155.24,155.2,40.56594269]
[1748674711917,20.46465173,155.24,155.2,18.64964886]
[1748674717642,14.02289606,155.23,155.2,18.64964886]
[1748674722447,20.46465173,155.24,155.2,18.64964886]
[1748674722841,6.44039415,155.27,155.2,18.64964886]
[1748674723142,14.02289606,155.25,155.2,32.67254492]
[1748674725546,14.02289606,155.24,155.2,32.67254492]
[1748674726845,20.4647802,155.24,155.2,18.64964886]
[1748674733951,6.44039415,155.27,155.2,18.64964886]
[1748674734142,14.02289606,155.24,155.2,18.64964886]
[1748674735361,14.02289606,155.25,155.2,39.11554568]
[1748674735565,166.36329021,155.27,155.22,18.64964886]
[1748674735773,14.02289606,155.26,155.22,18.64964886]
[1748674736961,20.46386536,155.26,155.22,18.64964886]
[1748674738360,14.02289606,155.25,155.22,18.64964886]
[1748674740135,6.4409693,155.26,155.22,18.64964886]
[1748674740358,20.46386536,155.26,155.22,18.64964886]
[1748674740536,14.02289606,155.25,155.2,32.4431851]
[1748674740740,6.4409693,155.26,155.19,18.64964886]
[1748674740741,14.02289606,155.23,155.19,18.64964886]
[1748674741164,14.02289606,155.22,155.17,23.98289606]
[1748674741373,14.02289606,155.22,155.18,18.64964886]
[1748674742766,6.44288383,155.21,155.18,18.64964886]
[1748674743367,20.46577989,155.21,155.18,18.64964886]
[1748674744145,6.44288383,155.21,155.18,18.64964886]
[1748674744786,20.46548581,155.22,155.18,18.64964886]
[1748674744946,20.46548581,155.22,155.18,32.67254492]
[1748674747469,14.02289606,155.23,155.18,32.67254492]
[1748674749863,6.44246875,155.22,155.18,32.67254492]
[1748674754376,14.02289606,155.22,155.18,32.67254492]
[1748674754559,22.54598648,155.24,155.19,14.02289606]
[1748674754560,14.02289606,155.23,155.19,14.02289606]
[1748674754757,20.46453481,155.24,155.19,14.02289606]
[1748674757255,20.46507269,155.23,155.19,14.02289606]
[1748674759459,14.02289606,155.22,155.18,32.67254492]
[1748674760073,14.02289606,155.21,155.17,49.98289606]
[1748674760471,14.02289606,155.22,155.17,49.98289606]
[1748674760670,14.02289606,155.22,155.17,40.02289606]
[1748674761175,20.46574447,155.22,155.17,40.02289606]
[1748674762257,14.02289606,155.21,155.17,40.02289606]
[1748674763380,20.46599181,155.21,155.17,40.02289606]
[1748674772162,14.02289606,155.19,155.15,23.98289606]
[1748674772369,14.02289606,155.19,155.15,9.96]
[1748674773287,14.02289606,155.19,155.15,23.98289606]
[1748674773774,20.46665982,155.19,155.15,23.98289606]
[1748674774372,6.44376376,155.19,155.15,23.98289606]
[1748674774679,20.46636095,155.2,155.15,23.98289606]
[1748674777083,6.44346489,155.2,155.15,23.98289606]
[1748674777288,20.46636095,155.2,155.15,23.98289606]
[1748674778183,14.02289606,155.19,155.15,23.98289606]
[1748674779163,20.46661213,155.19,155.15,23.98289606]
[1748674780189,20.46636978,155.2,155.15,23.98289606]
[1748674780690,20.46636978,155.2,155.15,30.42822809]
[1748674781883,20.46636978,155.2,155.15,16.40533203]
[1748674782079,20.46636978,155.2,155.15,30.42822809]
[1748674784194,14.02289606,155.19,155.15,30.42822809]